Cogmind - Beta 11.1 @@@ ROGUE MODE // 2022.05.27 @ 23:30:27 Player: Ruxi Result: Destroyed by 8R-AWN with 8R-AWN's Boregun Performance ------------- Evolutions (0) 0 Regions Visited (3) 600 Robots Destroyed (18) 90 Value Destroyed (436) 436 Prototype IDs (23) 460 Alien Tech Used (0) 0 Bonus (-509) -509 TOTAL SCORE: 1077 Bonus ------- Aligned with FarCom 300 Friendly Fire -809 Cogmind --------- Core Integrity 0/250 Matter 396/500 Energy 160/160 System Corruption 0% Temperature Cool (0) Movement Treading (160) Location -10/Exiles Parts ------- > --- POWER (1) -------- Light Nuclear Core > --- PROPULSION (2) --- Improved Treads Improved Treads > --- UTILITY (2) ------ Large Storage Unit High-capacity Matter Pod > --- WEAPON (2) ------- Hammer > --- INVENTORY (15) --- Light Treads Light Treads Improved Treads Improved Treads Improved Heat Sink Compact Matter Pod (150) Experimental Sensor Array Propulsion Shielding EX Chip 1 EX Chip 1 EX Chip 1 Rocket Launcher Datajack Peak State ------------ > --- POWER ------------ Light Angular Momentum Engine > --- PROPULSION ------- Improved Treads Improved Treads > --- UTILITY ---------- Large Storage Unit High-capacity Matter Pod > --- WEAPON ----------- Grenade Launcher Rocket Launcher > --- INVENTORY -------- Light Nuclear Core Light Treads Light Treads Improved Treads Improved Treads Improved Heat Sink Compact Matter Pod Experimental Sensor Array Propulsion Shielding Battle Cannon Datajack Hammer Deploy-a-Sentry Deploy-a-Sentry Deploy-a-Sentry [Rating: 19] Favorites ----------- Power Ion Engine Engine Ion Engine Power Core Light Nuclear Core Propulsion Light Treads Treads Light Treads Leg Improved Aluminum Leg Utility Large Storage Unit Device Sensor Array Storage Large Storage Unit Weapon Particle Cannon Energy Gun EM Pulse Gun Energy Cannon Particle Cannon Ballistic Gun Light Assault Rifle Ballistic Cannon Battle Cannon Launcher Grenade Launcher Impact Weapon Hammer Build | -11 -10 -10 -10 ------- Run | Scr Mat Min Exi Slots Evolved . | . . . . Power . | . . . . Propulsion . | . . . . Utility . | . . . . Weapon . | . . . . Parts Attached 31 | . 16 8 7 Power 4 | . 2 1 1 Engine 2 | . 1 1 . Core 2 | . 1 . 1 Reactor . | . . . . Propulsion 8 | . 6 . 2 Treads 4 | . 2 . 2 Leg 4 | . 4 . . Wheel . | . . . . Hover . | . . . . Flight . | . . . . Utility 4 | . 3 1 . Device 2 | . 2 . . Storage 2 | . 1 1 . Processor . | . . . . Hackware . | . . . . Protection . | . . . . Artifact . | . . . . Weapon 15 | . 5 6 4 Energy Gun 2 | . 2 . . Energy Cannon 5 | . 2 3 . Ballistic Gun . | . . . . Ballistic Cannon 1 | . . . 1 Launcher 5 | . 1 2 2 Special Weapon . | . . . . Impact Weapon 2 | . . 1 1 Slashing Weapon . | . . . . Piercing Weapon . | . . . . Special Melee Weapon . | . . . . Unidentified Prototypes . | . . . . Parts Lost 4 | . 1 . 3 Power 1 | . . . 1 Propulsion . | . . . . Utility . | . . . . Weapon 3 | . 1 . 2 Highest Loss Streak 2 | . 1 . 2 To Critical Strikes 2 | . . . 2 Average Slot Usage (%) 99 | . 98 100 99 Engine 11 | . 6 14 13 Core 2 | . 7 . . Treads 22 | . 11 28 28 Leg 5 | . 16 . . Device 8 | . 13 12 . Storage 19 | . 14 15 28 Energy Gun 3 | . 11 . . Energy Cannon 12 | . 12 17 5 Launcher 9 | . 1 6 20 Impact Weapon 1 | . . 3 1 Naked Turns . | . . . . Heaviest Build 40 | 12 34 40 40 Greatest Support 46 | 20 40 40 46 Greatest Overweight (x) . | . . . . Average Overweight (x) . | . . . . Largest Inventory Capacity 15 | 8 15 15 15 Average Capacity 13 | 8 8 15 15 Most Carried 15 | 6 8 15 15 Average Carried 11 | 6 7 12 14 Final Capacity 15 | 8 15 15 15 Final Carried 15 | 6 8 15 13 Class Distribution -------------------- 100% | Mutant Dominant Class ---------------- Mutant | -10/Materials Mutant | -10/Mines Mutant | -10/Exiles Resources | -11 -10 -10 -10 ----------- Run | Scr Mat Min Exi Matter Collected 533 | 200 130 194 9 Remotely . | . . . . Salvage Created 596 | . 394 188 14 Parts 27 | . 20 7 . Haulers Intercepted 2 | . 2 . . Recyclers Shooed . | . . . . Parts Field Recycled . | . . . . Retrieved Matter . | . . . . Parts Self-Destructed . | . . . . Prevented . | . . . . Kills | -11 -10 -10 -10 ------- Run | Scr Mat Min Exi Combat Hostiles Destroyed 13 | . 7 6 . Cannons 12 | . 7 5 . AOE 1 | . . 1 . Classes Destroyed 5 | . 4 . 1 Hauler 2 | . 2 . . Watcher 3 | . 3 . . Swarmer 5 | . 3 2 . Grunt 8 | . 4 4 . Assembled 5 | . . . 5 Best Kill Streak 3 | . 3 1 . Combat Bots Only 3 | . 3 1 . Max Kills in Single Turn 5 | . 1 1 5 Gunslinging . | . . . . Exploded 1 | . . 1 . Melee . | . . . . Uniques/NPCs Destroyed 2 | . . . 2 EX-HEX (-10/Exiles) EX-BIN (-10/Exiles) Combat | -11 -10 -10 -10 -------- Run | Scr Mat Min Exi Damage Taken 1215 | . 218 292 705 Core 256 | . 30 65 161 Absorbed by Shields . | . . . . Core Remaining (%) 100 | 100 . . . Volleys Fired 57 | . 34 19 4 Largest 2 | . 2 2 2 Hottest 128 | . 108 128 63 Shots Fired 92 | . 61 25 6 Gun 25 | . 25 . . Cannon 56 | . 34 21 1 Launcher 11 | . 2 4 5 Special . | . . . . Kinetic 1 | . . . 1 Thermal 55 | . 34 21 . Explosive 11 | . 2 4 5 Electromagnetic 25 | . 25 . . Robot Hit Streak 11 | . 7 11 11 Robot Miss Streak 3 | . 3 1 . Penetration Max . | . . . . Secondary Targets . | . . . . Shots Hit Robots 74 | . 40 19 15 Core Hits 39 | . 16 9 14 Critical Kills . | . . . . Critical Parts Destroyed . | . . . . Critical Strikes . | . . . . Melee Attacks 20 | . . 2 18 Impact 20 | . . 2 18 Slashing . | . . . . Piercing . | . . . . Sneak Attacks . | . . . . Combat Hostiles . | . . . . Follow-up Attacks . | . . . . Damage Inflicted 1920 | . 769 451 700 Guns 217 | . 217 . . Cannons 850 | . 496 333 21 Explosions 453 | . 56 84 313 Melee 400 | . . 34 366 Ramming . | . . . . Kinetic 21 | . . . 21 Thermal 850 | . 517 333 . Explosive 432 | . 35 84 313 Electromagnetic 217 | . 217 . . Impact 400 | . . 34 366 Slashing . | . . . . Piercing . | . . . . Highest Corruption . | . . . . Average Corruption . | . . . . Corruption Purged . | . . . . Corruption Blocked . | . . . . Overload Shots . | . . . . Overflow Damage 5 | . . 1 4 Projectiles 1 | . . 1 . Explosions . | . . . . Melee 4 | . . . 4 Knockbacks 6 | . . . 6 Impact 5 | . . . 5 Kinetic 1 | . . . 1 Secondary . | . . . . Self-Inflicted Damage 70 | . 70 . . Shots 2 | . 2 . . Rammed . | . . . . Targets Rammed . | . . . . Kicked . | . . . . Crushed . | . . . . Highest Temperature 324 | . 324 255 18 Average Temperature 92 | . 100 84 7 Received Heat Transfer 195 | . 66 129 . Effects 1 | . 1 . . Interference 1 | . 1 . . Siege Activations . | . . . . Robots Corrupted . | . . . . Combat Hostiles . | . . . . Parts Fried . | . . . . Impact Corruptions 2 | . . . 2 Robots Melted . | . . . . Combat Hostiles . | . . . . Parts Melted 5 | . 1 4 . Heat Transferred 1604 | . 938 666 . Parts Sabotaged . | . . . . Parts Stolen . | . . . . Parts Stripped . | . . . . Power Chain Reactions 1 | . 1 . . Missiles Intercepted . | . . . . Alert | -11 -10 -10 -10 ------- Run | Scr Mat Min Exi Peak Influence 191 | . 159 191 . Initial 61 | . . 61 . Average 51 | . 35 64 . Maximum Alert Level . | . . . . Low Security (%) 100 | 100 100 100 . Level 1 . | . . . . Level 2 . | . . . . Level 3 . | . . . . Level 4 . | . . . . Level 5 . | . . . . High Security . | . . . . Max Security . | . . . . Squads Dispatched . | . . . . Investigation . | . . . . Extermination . | . . . . Reinforcement . | . . . . Assault . | . . . . Garrison . | . . . . Intercept . | . . . . Searches Triggered . | . . . . Construction Impeded . | . . . . Haulers Reinforced . | . . . . Active Scanning Responses . | . . . . Cargo Convoy Interrupts . | . . . . Stealth | -11 -10 -10 -10 --------- Run | Scr Mat Min Exi Distress Signals 1 | . 1 . . Communications Jammed . | . . . . Distress Signals . | . . . . Times Spotted 25 | . 14 8 3 Peak Tracking Total 4 | . 3 2 4 Tactical Retreats 2 | . . 2 . Traps | -11 -10 -10 -10 ------- Run | Scr Mat Min Exi Traps Triggered 2 | . 2 . . Indirectly . | . . . . Trap Hack Attempts . | . . . . Triggered . | . . . . Disarmed . | . . . . Reprogrammed . | . . . . Reused . | . . . . Traps Extracted . | . . . . Installed . | . . . . Triggered . | . . . . Machines | -11 -10 -10 -10 ---------- Run | Scr Mat Min Exi Machines Disabled 5 | . 1 . 4 Max in Single Turn 2 | . 1 . 2 Machines Sabotaged . | . . . . Garrisons Compromised . | . . . . Overloaded Fab Kills . | . . . . Hacking | -11 -10 -10 -10 --------- Run | Scr Mat Min Exi Machines Accessed 9 | . 7 . 2 Terminals 7 | . 7 . . Fabricators . | . . . . Repair Stations . | . . . . Recycling Units . | . . . . Scanalyzers . | . . . . Garrison Access . | . . . . Total Hacks 19 | . 17 . 2 Successful 9 | . 7 . 2 Failed 10 | . 10 . . Catastrophic 3 | . 3 . . Database Lockouts . | . . . . Manual 16 | . 15 . 1 Terminals 17 | . 17 . . Fabricators . | . . . . Repair Stations . | . . . . Recycling Units . | . . . . Scanalyzers . | . . . . Garrison Access . | . . . . Terminal Hacks 5 | . 3 . 2 Record 1 | . . . 1 Robot Analysis 1 | . 1 . . Branch Access Points 1 | . 1 . . Unreport Threat 1 | . 1 . . EX-Prototype ID Bank 1 | . . . 1 Fabricator Hacks . | . . . . Repair Station Hacks . | . . . . Recycling Unit Hacks . | . . . . Scanalyzer . | . . . . Garrison Access Hacks . | . . . . Unauthorized Hacks 4 | . 4 . . Terminals 4 | . 4 . . Botnet 3 | . 3 . . Operators 1 | . 1 . . Fabricators . | . . . . Repair Stations . | . . . . Recycling Units . | . . . . Scanalyzers . | . . . . Garrison Access . | . . . . Data Cores Recovered . | . . . . Used . | . . . . Hacking Detections 7 | . 7 . . Full Trace Events . | . . . . Feedback Events . | . . . . Feedback Blocked . | . . . . Robot Schematics Acquired . | . . . . Robots Built . | . . . . Authchips . | . . . . Time . | . . . . Total Robot Build Rating . | . . . . Part Schematics Acquired . | . . . . Parts Built . | . . . . Authchips . | . . . . Time . | . . . . Total Part Build Rating . | . . . . Parts Repaired . | . . . . Time . | . . . . Parts Recycled . | . . . . Recycled Matter . | . . . . Retrieved Matter . | . . . . Retrieved Components . | . . . . Parts Scanalyzed . | . . . . Part Schematics Acquired . | . . . . Parts Damaged . | . . . . Bothacking | -11 -10 -10 -10 ------------ Run | Scr Mat Min Exi Used RIF Installer . | . . . . Robots Hacked . | . . . . Non-combat . | . . . . Combat . | . . . . Robot Hacks Applied . | . . . . Relay Couplers Released . | . . . . Fabnet Peak Effective % . | . . . . Robots Rewired . | . . . . Allies Hacked . | . . . . Hacks Repelled . | . . . . Allies | -11 -10 -10 -10 -------- Run | Scr Mat Min Exi Total Allies . | . . . . Largest Group . | . . . . Highest-Rated Group . | . . . . Highest-Rated Ally . | . . . . Total Orders . | . . . . Ally Attacks 18 | . . . 18 Total Damage 940 | . . . 940 Kills 5 | . . . 5 Allies Corrupted . | . . . . Allies Melted . | . . . . Turrets Deployed 3 | . . . 3 Intel | -11 -10 -10 -10 ------- Run | Scr Mat Min Exi Robot Analysis Total 1 | . 1 . . Derelict Logs Recovered 1 | . . 1 . Drone Launches . | . . . . Drone Recoveries . | . . . . Exploration | -11 -10 -10 -10 ------------- Run | Scr Mat Min Exi Turns Passed 3697 | 2 1152 1388 1155 Spaces Moved 2082 | 2 625 791 664 Core . | . . . . Treads 1691 | . 236 791 664 Legs 391 | 2 389 . . Wheels . | . . . . Hover . | . . . . Flight . | . . . . Fastest Speed 120 | 120 120 160 160 Average Speed 152 | 120 135 160 160 Slowest Speed 160 | 120 160 160 160 Overloaded Moves . | . . . . Propulsion Burnouts . | . . . . Robots Hopped . | . . . . Cave-ins Triggered . | . . . . Exploration Rate (%) 72 | 3 98 99 91 Regions Visited 3 Branch Regions 2 Pre-discovered Areas . | . . . . Known Exits Taken 1 | . 1 . . Unknown Exits Taken 2 | 1 . 1 . Scrap Searched 2 | . . 2 . Spaces Dug . | . . . . Terrain Destroyed 87 | . 19 31 37 Melee . | . . . . Projectile . | . . . . AOE 87 | . 19 31 37 Terrain Rammed . | . . . . Walls Destroyed . | . . . . Machines Disabled . | . . . . Actions | -11 -10 -10 -10 --------- Run | Scr Mat Min Exi Total 2481 | 1 876 883 721 Wait 242 | . 172 54 16 Move 2079 | 1 624 790 664 Hop . | . . . . Pick Up 28 | . 14 8 6 Fast Attach 8 | . 7 1 . Attach 9 | . 4 1 4 Detach . | . . . . Swap 14 | . 5 6 3 Drop 24 | . 16 2 6 Fire 57 | . 34 19 4 Melee 20 | . . 2 18 Ram . | . . . . Kick . | . . . . Crush . | . . . . Escape Stasis . | . . . . Rewire . | . . . . Trap . | . . . . Miscellaneous . | . . . . Route ------- -11/Scrapyard -10/Materials (discovered 4 exits: [*Mat x3] / *Min) -10/Mines (discovered 3 exits: [*Mat x2] / *Exi) -10/Exiles (discovered 2 exits: [*Min x2]) History --------- Turn | Location | Event 1 | -11/Scrapyard | Discovered new exit (range 1) 3 | -11/Scrapyard | Entered Materials 289 | -10/Materials | Discovered new exit (range 16) 302 | -10/Materials | Build established: Mutant 590 | -10/Materials | Discovered new exit (range 14) 638 | -10/Materials | Identified exit to Mines 1047 | -10/Materials | Discovered new exit (range 9) 1155 | -10/Materials | Entered Mines 1172 | -10/Mines | Met a Derelict bent on vengeance 1445 | -10/Mines | Learned Materials garrison access intel 1460 | -10/Mines | Found a damaged Exp. Sensor Array with a note attached 1463 | -10/Mines | Found Prototype Device 1621 | -10/Mines | Discovered new exit (range 11) 1733 | -10/Mines | Discovered new exit (range 8) 1802 | -10/Mines | Deemed a non-threat by the Exiles lab entrance 1802 | -10/Mines | Discovered new exit (range 5) 2270 | -10/Mines | A weapon hastily lodged in a ceiling crevice suddenly fell to the ground 2543 | -10/Mines | Entered Exiles 2564 | -10/Exiles | Discovered new exit (range 15) 2599 | -10/Exiles | Met 8R-AWN 2622 | -10/Exiles | Met EX-HEX 2671 | -10/Exiles | Met EX-BIN 2700 | -10/Exiles | Aligned with FarCom system 2703 | -10/Exiles | Given EX-Vault access code 2755 | -10/Exiles | Opened EX-Vault 2771 | -10/Exiles | Found Deploy-a-Sentry 2773 | -10/Exiles | Found Deploy-a-Sentry 2776 | -10/Exiles | Found Deploy-a-Sentry 2811 | -10/Exiles | Warned to stay clear of 0b10 Research branches 2998 | -10/Exiles | Met EX-DEC 3060 | -10/Exiles | Visited The Gauntlet 3340 | -10/Exiles | Discovered new exit (range 12) 3474 | -10/Exiles | DAS Turret deployed 3497 | -10/Exiles | DAS Turret deployed 3528 | -10/Exiles | DAS Turret deployed 3564 | -10/Exiles | Attacked by the Exiles 3567 | -10/Exiles | Allies destroyed EX-HEX 3569 | -10/Exiles | Allies destroyed EX-BIN 3599 | -10/Exiles | Core integrity fell below 50% 3667 | -10/Exiles | Core integrity fell below 20% 3698 | -10/Exiles | Destroyed by 8R-AWN with 8R-AWN's Boregun Last Messages --------------- 03659_ Critical hit (Destroy). 03659_ Battle Cannon destroyed. 03659_ HV Slug penetrates Machine. 03659_ HV Slug penetrates Wall. 03661_ 8R-AWN knocked back. 03663_ Penetrated by HV Slug. 03663_ HV Slug penetrates Assembled Analyzer. 03663_ HV Slug penetrates Wall. 03666_ Destroyed Prototype Device. 03666_ 8R-AWN system corrupted by crushing effect. 03666_ Penetrated by HV Slug. 03679_ HV Slug penetrates Wall. 03679_ 8R-AWN knocked back. 03683_ Penetrated by HV Slug. 03687_ HV Slug penetrates Machine. 03687_ Penetrated by HV Slug. 03687_ Lgt. Angular Momentum Engine destroyed. 03694_ Penetrated by HV Slug. 03695_ 8R-AWN knocked back. 03698_ Penetrated by HV Slug. Map ----- +----------------------------------------------------+ | ????????????#" """#???????????????????? | | ????????????#" """#???????????????????? | | #####???????#" """#???????????????????? | | """#???????#" """##??????????????????? | | """#???????## """""??????????????????? | | #????????# """##??????????????????? | | #????????#" "X" """""??????????????????? | | "#????????#" """ # ??????????????????? | | ""#????????#" ! """""""""#????????????#??????? | | ""#???????##"!!! ###########??????????? ???????? | | ###??????##""%%! #???????#####??###??# ????????? | | ###?######"" !!= #???????# # ##? ??# #????????? | | #"###""""""" ! ##??????## # ## ??# #?????????? | | """""" " "" ##???### # ### #??????????? | | "" """ " ##### #;#???????????? | | " " " ##???????????? | | #???????????? | | "" #???????????? | | a #???????????# | | ##?????????## | | "####??????#" | | """""" " ;#?????##" | | ######""" %!= "##???### | | ""##????#####""" t ! ##???# | | """##?????????##""" ! ##?# | | """##???????????#" "@ % # | | ""#???????????##"" g = | | ########??####"""" % # | | ## ####""" % # | | """" # | | #% # | | ######## | | t " ##??????? | | " "" """ %""#???????? | | ""## ##""" " " ""#" % % "##???????? | | ""#### ######""" """## ##????????? | | """"##??# #????###""""#### # #?????????? | | """#??## ####???######?# #?????????? | | ""##??#! "!#??????????#########?????????? | | """##???#" !#????????????????????????????? | | ##????#" "#????????????????????????????? | | ##?????#!!""!"#????????????????????????????? | | #??????########????????????????????????????? | | # ##??????????????????????????????????????????? | | ## #???????????????????????????????????????????? | | ?# #???????????????????????????????????????????? | | ?# #???????????????????????????????????????????? | | ?# #???????????????????????????????????????????? | | ?# #???????????????????????????????????????????? | | ?# #???????????????????????????????????????????? | +----------------------------------------------------+ Best States ------------- Heat Dissipation 25 Energy Generation 18 Energy Capacity 250 Matter Stores 500 Matter Capacity 500 Sight Range 16 Robot Scan Range 14 Terrain Scan Range 14 Terrain Scan Density 10 Evasion (%) 55 Recoil Reduction 2 Item Schematics ----------------- None Robot Schematics ------------------ None Fabricated ------------ Nothing Alien Tech Used ----------------- None Achievements -------------- None Challenges ------------ None Game ------ Seed BehemothPointyTendrils Manual? 0 Play Time 00:34:56 Cumulative 87.9 hours Start 2022.05.27 @ 22:57:30 End 2022.05.27 @ 23:30:27 Sessions 1 Manual Loads 0 Difficulty Rogue Special Mode None Game No. 60 Rogue 58 Adventurer 0 Explorer 2 Win Type - Total 0 Types 0/0/0/0/0/0/0/0/0 Lore% 25 Gallery% 33 Achievement% 29 Wizard Run 0 Options --------- ASCII 0 Keyboard 0 Movement Numpad Keybinds 0 Fullscreen 1 Font 18/SmallcapsGlow Map View 76x50 Tactical HUD 1 Map Filters NONE Filters NONE Steam 1 RUN: cadfb946-a401-44b1-8fdf-c6e6232bcc02